fUSD/lending_fUSD_20260409
["ID","MTS","AMOUNT","RATE_DAILY","PERIOD"]
[420166469,1775745038638,-1655.0829058,0.00013918,2]
[420166471,1775745038648,-152.0,0.00013918,2]
[420166473,1775745038658,-152.0,0.00013918,2]
[420166475,1775745038667,-152.0,0.00013918,2]
[420166477,1775745038677,-159.88645984,0.00013918,2]
[420166480,1775745038687,-1527.0,0.00013918,2]
[420166482,1775745038697,-1572.24206277,0.00013918,2]
[420166484,1775745038707,-152.0,0.00013918,2]
[420166486,1775745038717,-152.0,0.00013918,2]
[420166488,1775745038726,-152.0,0.00013918,2]
[420166490,1775745038738,-152.0,0.00013918,2]
[420166492,1775745038748,-152.0,0.00013918,2]
[420166494,1775745038758,-200.0,0.00013939,2]
[420166496,1775745038768,-1328.27659266,0.00013939,2]
[420166498,1775745038777,-194.72792766,0.00013939,2]
[420166500,1775745038787,-166.66,0.00013979,2]
[420166502,1775745038796,-433.0,0.00013984,2]
[420166504,1775745038806,-151.0,0.00014,5]
[420166506,1775745038817,-1886.76035795,0.00014,2]
[420166508,1775745038827,-506.0,0.00014042,2]
[420166510,1775745038837,-404.77030832,0.00014128,2]
[420166512,1775745038846,-786.15,0.00014154,2]
[420166514,1775745038856,-1000.0,0.00014162,2]
[420166516,1775745038866,-6028.499968,0.000142,2]
[420166517,1775745038876,-2000.0,0.0001421,2]
[420166518,1775745038885,-2000.0,0.0001421,2]
[420166519,1775745038894,-2000.0,0.0001423,2]
[420166520,1775745038904,-6013.30173185,0.00014296,2]
[420166521,1775745038914,-500.0,0.00014356,2]
[420166522,1775745038923,-163.69217029,0.00014357,2]
[420166523,1775745038933,-500.0,0.00014357,2]
[420166524,1775745038942,-500.0,0.00014357,2]
[420166525,1775745038952,-2000.0,0.00014357,2]
[420166526,1775745038960,-2000.0,0.00014357,2]
[420166527,1775745038970,-2000.0,0.00014357,2]
[420166528,1775745038980,-150.0,0.00014357,2]
[420166529,1775745038990,-150.0,0.00014357,2]
[420166530,1775745039000,-299.0,0.00014358,2]
[420166531,1775745039010,-150.0,0.00014358,2]
[420166532,1775745039019,-150.0,0.00014358,2]
[420166533,1775745039029,-258.679,0.00014358,2]
[420166534,1775745039038,-150.0,0.00014358,2]
[420166535,1775745039048,-150.0,0.00014358,2]
[420166536,1775745039058,-150.0,0.00014358,2]
[420166537,1775745039067,-150.0,0.00014358,2]
[420166538,1775745039078,-150.0,0.00014358,2]
[420166539,1775745039088,-150.0,0.00014358,2]
[420166540,1775745039098,-166.66,0.00014384,2]
[420166541,1775745039108,-988.93,0.00014384,2]
[420166542,1775745039117,-1264.0,0.00014396,2]
[420166543,1775745039128,-192.735,0.00014396,2]
[420166544,1775745039138,-1218.0,0.00014396,2]
[420166545,1775745039147,-926.0,0.00014396,2]
[420166546,1775745039157,-1047.0,0.00014396,2]
[420166547,1775745039166,-163.986,0.00014396,2]
[420166548,1775745039176,-162.0,0.000144,2]
[420166549,1775745039186,-306.0,0.000144,2]
[420166550,1775745039198,-1000.0,0.000144,2]
[420166551,1775745039208,-313.0,0.000144,2]
[420166552,1775745039217,-879.0,0.000144,2]
[420166553,1775745039226,-166.66,0.00014426,2]
[420166554,1775745039236,-786.15,0.00014428,2]
[420166555,1775745039245,-4150.0,0.00014436,2]
[420166556,1775745039256,-1000.0,0.00014455,2]
[420166557,1775745039266,-6013.30173184,0.00014474,2]
[420166558,1775745039276,-200.0,0.00014487,2]
[420166559,1775745039286,-1377.42282659,0.00014487,2]
[420166560,1775745039296,-201.93286099,0.00014487,2]
[420166561,1775745039305,-4150.0,0.00014502,2]
[420166562,1775745039315,-1000.0,0.00014538,2]
[420166563,1775745039326,-214.805283,0.00014555,2]
[420166564,1775745039335,-195.328911,0.00014555,7]
[420166565,1775745039345,-1500.0,0.00014563,2]
[420166566,1775745039355,-1500.0,0.00014563,2]
[420166567,1775745039365,-1500.0,0.00014563,2]
[420166568,1775745039374,-1500.0,0.00014563,2]
[420166569,1775745039384,-1590.054416,0.00014563,2]
[420166570,1775745039394,-155.0,0.00014611,2]
[420166571,1775745039405,-6013.30173184,0.00014652,2]
[420166572,1775745039415,-1100.0,0.0001467,2]
[420166573,1775745039424,-855.0,0.00014676,2]
[420166574,1775745039435,-855.0,0.00014678,2]
[420166575,1775745039446,-500.0,0.00014682,2]
[420166576,1775745039456,-500.0,0.00014682,2]
[420166577,1775745039466,-500.0,0.00014682,2]
[420166578,1775745039477,-500.0,0.00014682,2]
[420166579,1775745039487,-500.0,0.00014682,2]
[420166580,1775745039497,-500.0,0.00014682,2]
[420166581,1775745039507,-500.0,0.00014682,2]
[420166583,1775745039517,-500.0,0.00014682,2]
[420166584,1775745039527,-500.0,0.00014682,2]
[420166585,1775745039537,-500.0,0.00014682,2]
[420166586,1775745039546,-500.0,0.00014682,2]
[420166587,1775745039558,-500.0,0.00014682,2]
[420166588,1775745039568,-500.0,0.00014682,2]
[420166589,1775745039578,-500.0,0.00014682,2]
[420166590,1775745039588,-500.0,0.00014682,2]
[420166591,1775745039598,-500.0,0.00014682,2]
[420166592,1775745039609,-500.0,0.00014682,2]
[420166593,1775745039619,-500.0,0.00014682,2]
[420166594,1775745039629,-500.0,0.00014682,2]
[420166595,1775745039639,-500.0,0.00014682,2]
[420166596,1775745039648,-500.0,0.00014682,2]
[420166597,1775745039658,-500.0,0.00014682,2]
[420166598,1775745039668,-500.0,0.00014682,2]
[420166599,1775745039677,-500.0,0.00014682,2]
[420166600,1775745039687,-500.0,0.00014682,2]
[420166601,1775745039699,-531.94,0.00014682,2]
[420166602,1775745039709,-500.0,0.00014682,2]
[420166603,1775745039719,-220.48,0.00014682,2]
[420166604,1775745039729,-2162.0,0.00014694,2]
[420166605,1775745039738,-261.58,0.00014702,2]
[420166606,1775745039748,-855.0,0.00014727,2]
[420166607,1775745039758,-152.0,0.00014733,6]
[420166608,1775745039768,-180.93832208,0.00014739,2]
[420166609,1775745039778,-299.0,0.00014762,5]
[420166610,1775745039787,-700.0,0.0001477,2]
[420166611,1775745039797,-2000.0,0.00014794,2]
[420166612,1775745039807,-1600.0,0.00014812,2]
[420166613,1775745039817,-168.0,0.00014813,2]
[420166614,1775745039827,-500.0,0.00014822,2]
[420166615,1775745039837,-500.0,0.00014822,2]
[420166616,1775745039847,-500.0,0.00014822,2]
[420166617,1775745039856,-500.0,0.00014822,2]
[420166618,1775745039866,-855.0,0.00014827,2]
[420166619,1775745039876,-6013.30173184,0.00014831,2]
[420166620,1775745039886,-1000.0,0.00014845,2]
[420166621,1775745039895,-3893.95,0.00014853,2]
[420166622,1775745039905,-166.66,0.00014873,2]
[420166623,1775745039916,-330.22290886,0.00014874,2]
[420166624,1775745039926,-168.0,0.00014887,2]
[420166626,1775745039936,-3000.0,0.00014888,2]
[420166628,1775745039946,-155.0,0.000149,2]
[420166630,1775745039956,-155.78,0.000149,2]
[420166632,1775745039966,-855.0,0.00014902,2]
[420166634,1775745039976,-1607.57467786,0.00014911,2]
[420166636,1775745039986,-500.0,0.00014912,2]
[420166638,1775745039997,-462.553581,0.00014925,2]
[420166639,1775745040007,-220.48,0.00014956,2]
[420166640,1775745040018,-506.0,0.00014985,3]
[420166641,1775745040028,-309.73899348,0.00015,2]
[420166642,1775745040039,-201.0,0.00015,2]
[420166643,1775745040049,-195.0,0.00015,2]
[420166644,1775745040059,-200.0,0.00015,2]
[420166645,1775745040069,-826.28,0.00015,2]
[420166646,1775745040079,-2000.0,0.00015,2]
[420166647,1775745040090,-1796.68893927,0.00015,2]
[420166648,1775745040100,-1000.0,0.00015,2]
[420166649,1775745040109,-172.7926,0.00015,2]
[420166650,1775745040120,-151.0,0.00015,5]
[420166651,1775745040129,-300.0,0.00015,2]
[420166652,1775745040139,-216.69522867,0.00015,2]
[420166653,1775745040165,-2215.30477133,0.00015,2]
[420166654,1775745040174,-724.0,0.00015,2]
[420166655,1775745040185,-200.0,0.00015,5]
[420166656,1775745040196,-171.2,0.00015008,2]
[420166657,1775745040206,-6013.30173184,0.00015009,2]
[420166658,1775745040216,-1439.0,0.00015011,5]
[420166659,1775745040227,-599.60298507,0.00015034,2]
[420166660,1775745040240,-623.58710448,0.00015034,2]
[420166661,1775745040250,-200.0,0.00015035,2]
[420166662,1775745040262,-1428.38747117,0.00015035,2]
[420166663,1775745040272,-209.40437684,0.00015035,2]
[420166664,1775745040283,-1480.65,0.00015057,2]
[420166665,1775745040293,-725.53,0.00015057,2]
[420166666,1775745040303,-155.0,0.00015068,2]
[420166667,1775745040313,-3107.76,0.00015068,2]
[420166668,1775745040324,-500.0,0.00015068,2]
[420166669,1775745040334,-806.67,0.00015068,2]
[420166670,1775745040344,-988.93,0.00015068,2]
[420166671,1775745040355,-800.0,0.00015068,2]
[420166672,1775745040365,-1207.0,0.00015069,2]
[420166673,1775745040375,-168.0,0.00015069,2]
[420166674,1775745040385,-500.0,0.00015099,2]
[420166675,1775745040395,-500.0,0.00015099,2]
[420166676,1775745040405,-500.0,0.000151,5]
[420166677,1775745040415,-162.0,0.00015113,2]
[420166678,1775745040425,-295.46837255,0.00015141,2]
[420166679,1775745040435,-284.26083397,0.00015141,2]
[420166680,1775745040445,-1300.0,0.00015162,2]
[420166681,1775745040454,-253.17290605,0.00015167,2]
[420166682,1775745040464,-255.83475059,0.0001517,2]
[420166683,1775745040474,-257.18222454,0.00015183,2]
[420166684,1775745040484,-6013.30173184,0.00015187,2]
[420166685,1775745040495,-855.0,0.00015191,2]
[420166686,1775745040505,-282.23,0.00015195,2]
[420166687,1775745040516,-174.89,0.00015198,2]
[420166688,1775745040526,-4000.0,0.000152,3]
[420166689,1775745040537,-800.0,0.000152,5]
[420166690,1775745040547,-4275.13,0.00015205,2]
[420166691,1775745040558,-746.59985751,0.00015207,2]
[420166692,1775745040568,-418.77488244,0.00015214,2]
[420166693,1775745040581,-507.9289547,0.0001522,2]
[420166694,1775745040592,-220.48,0.0001523,2]
[420166695,1775745040602,-855.0,0.00015244,2]
[420166696,1775745040612,-736.0,0.00015265,2]
[420166697,1775745040621,-855.0,0.00015289,2]
[420166698,1775745040631,-855.0,0.00015294,2]
[420166699,1775745040640,-1695.32283115,0.000153,2]
[420166700,1775745040650,-1100.0,0.000153,5]
[420166701,1775745040660,-6171.20686506,0.000153,2]
[420166702,1775745040670,-9999.99,0.0001531,2]
[420166703,1775745040680,-5191.38,0.0001531,2]
[420166704,1775745040689,-491.73,0.0001531,2]
[420166705,1775745040698,-166.66,0.0001532,2]
[420166706,1775745040708,-260.07,0.00015326,2]
[420166707,1775745040719,-986.05,0.00015328,2]
[420166708,1775745040728,-1386.0,0.00015334,5]
[420166709,1775745040738,-787.29481814,0.00015358,2]
[420166710,1775745040765,-838.26518186,0.00015358,2]
[420166711,1775745040775,-286.2848241,0.00015365,2]
[420166718,1775745043043,-3293.71492443,0.00014265,2]
[420166719,1775745043122,-434.753083,0.00014265,2]
[420166720,1775745043148,-1074.46433853,0.00014265,2]
[420166736,1775745045907,-432.7,0.00014265,2]
[420166737,1775745048948,-787.36765404,0.00014265,2]
[420166739,1775745048959,-481.98,0.0001456,2]
[420166741,1775745048969,-2331.0,0.00015365,2]
[420166743,1775745048979,-5727.01690774,0.00015365,2]
[420166744,1775745048988,-6171.20686504,0.00015367,2]
[420166745,1775745048998,-2281.69328773,0.00015368,2]
[420166746,1775745049008,-1573.0,0.0001539,2]
[420166747,1775745049017,-1400.0,0.000154,5]
[420166748,1775745049027,-500.0,0.00015405,2]
[420166749,1775745049037,-2000.0,0.00015405,2]
[420166750,1775745049046,-200.0,0.00015419,2]
[420166751,1775745049055,-200.0,0.00015419,2]
[420166752,1775745049065,-200.0,0.00015419,2]
[420166753,1775745049074,-6171.20686504,0.00015433,2]
[420166754,1775745049083,-1000.0,0.00015434,2]
[420166755,1775745049093,-1000.0,0.00015434,2]
[420166756,1775745049103,-1000.0,0.00015434,2]
[420166757,1775745049112,-1000.0,0.00015434,2]
[420166758,1775745049121,-1000.0,0.00015434,2]
[420166759,1775745049132,-1000.0,0.00015434,2]
[420166760,1775745049140,-1000.0,0.00015434,2]
[420166761,1775745049150,-168.0,0.00015449,2]
[420166762,1775745049160,-855.0,0.00015459,2]
[420166763,1775745049169,-282.23,0.00015462,2]
[420166764,1775745049179,-2220.96,0.00015471,2]
[420166765,1775745049189,-5131.17,0.00015471,2]
[420166766,1775745049199,-7126.81,0.00015471,2]
[420166767,1775745049209,-1059.22,0.00015471,2]
[420166768,1775745049218,-150.0,0.00015473,2]
[420166769,1775745049228,-855.0,0.00015475,2]
[420166770,1775745049238,-855.0,0.0001548,2]
[420166771,1775745049247,-150.0,0.00015497,2]
[420166772,1775745049258,-500.0,0.00015499,2]
[420166773,1775745049267,-500.0,0.00015499,2]
[420166774,1775745049277,-500.0,0.00015499,2]
[420166775,1775745049286,-500.0,0.00015499,2]
[420166776,1775745049296,-2000.0,0.000155,2]
[420166777,1775745049305,-227.43782841,0.000155,2]
[420166778,1775745049315,-333.78353701,0.000155,2]
[420166779,1775745049325,-200.0,0.000155,5]
[420166780,1775745049335,-5000.0,0.000155,2]
[420166781,1775745049345,-11444.23457925,0.000155,2]
[420166782,1775745049354,-6171.20686504,0.000155,2]
[420166783,1775745049364,-2000.0,0.000155,2]
[420166784,1775745049373,-220.48,0.00015504,2]
[420166785,1775745049383,-4000.0,0.00015507,2]
[420166786,1775745049392,-150.0,0.00015509,2]
[420166787,1775745049402,-174.89,0.00015522,2]
[420166788,1775745049412,-150.0,0.00015528,2]
[420166789,1775745049422,-150.0,0.00015531,2]
[420166790,1775745049432,-855.0,0.00015543,2]
[420166791,1775745049442,-6013.30173184,0.00015544,2]
[420166792,1775745049452,-168.0,0.0001555,2]
[420166793,1775745049462,-150.0,0.00015553,2]
[420166794,1775745049472,-333.78353697,0.00015567,2]
[420166795,1775745049482,-6171.20686504,0.00015567,2]
[420166796,1775745049491,-700.0,0.0001557,2]
[420166797,1775745049500,-700.0,0.0001557,2]
[420166798,1775745049509,-400.0,0.0001557,2]
[420166799,1775745049519,-500.0,0.00015573,2]
[420166800,1775745049528,-500.0,0.00015573,2]
[420166801,1775745049538,-500.0,0.00015573,2]
[420166802,1775745049547,-500.23216772,0.00015573,2]
[420166803,1775745049557,-500.0,0.00015579,2]
[420166804,1775745049567,-11444.23457924,0.0001558,2]
[420166805,1775745049577,-200.0,0.00015583,2]
[420166806,1775745049586,-1481.23780761,0.00015583,2]
[420166807,1775745049596,-217.15233878,0.00015583,2]
[420166808,1775745049606,-282.23,0.00015589,2]
[420166809,1775745049615,-163.702,0.0001559,2]
[420166810,1775745049624,-282.23,0.0001559,2]
[420166811,1775745049633,-282.23,0.0001559,2]
[420166812,1775745049642,-162.4448075,0.0001559,2]
[420166813,1775745049652,-1054.68099591,0.00015599,5]
[420166814,1775745049662,-500.0,0.00015599,2]
[420166815,1775745049674,-500.0,0.00015599,2]
[420166816,1775745049682,-500.0,0.00015599,2]
[420166817,1775745049691,-500.0,0.00015599,2]
[420166818,1775745049701,-500.0,0.00015599,2]
[420166819,1775745049710,-500.0,0.00015599,2]
[420166820,1775745049718,-500.0,0.00015599,2]
[420166821,1775745049728,-500.0,0.00015599,2]
[420166822,1775745049738,-500.0,0.00015599,2]
[420166823,1775745049748,-500.0,0.00015599,2]
[420166824,1775745049758,-500.0,0.00015599,2]
[420166825,1775745049767,-500.0,0.00015599,2]
[420166826,1775745049776,-500.0,0.00015599,2]
[420166827,1775745049785,-500.0,0.00015599,2]
[420166828,1775745049795,-500.0,0.00015599,2]
[420166829,1775745049805,-500.0,0.00015599,2]
[420166830,1775745049815,-500.0,0.00015599,2]
[420166831,1775745049824,-528.04420331,0.00015599,2]
[420166832,1775745049833,-3107.76,0.00015599,2]
[420166833,1775745049843,-3107.76,0.00015599,2]
[420166834,1775745049853,-3107.76,0.00015599,2]
[420166835,1775745049862,-3107.76,0.00015599,2]
[420166836,1775745049872,-3107.76,0.00015599,2]
[420166837,1775745049881,-3107.76,0.00015599,2]
[420166838,1775745049891,-500.0,0.00015599,2]
[420166839,1775745049900,-500.0,0.00015599,2]
[420166840,1775745049909,-500.0,0.00015599,2]
[420166841,1775745049919,-500.0,0.00015599,2]
[420166842,1775745049929,-500.0,0.00015599,2]
[420166843,1775745049938,-500.0,0.00015599,2]
[420166844,1775745049948,-500.0,0.00015599,2]
[420166845,1775745049959,-500.0,0.00015599,2]
[420166846,1775745049968,-500.0,0.00015599,2]
[420166847,1775745049977,-500.0,0.00015599,2]
[420166848,1775745049987,-500.0,0.00015599,2]
[420166849,1775745049997,-500.0,0.00015599,2]
[420166850,1775745050007,-4000.0,0.000156,3]
[420166851,1775745050018,-190332.00469515,0.000156,2]
[420166852,1775745569072,24340.0,9.5e-05,3]
[420166853,1775745601486,95000.0,9e-05,3]
[420166854,1775745843541,157.48,5.907e-05,2]
[420166855,1775745843749,157.48,6.892e-05,2]
[420166856,1775745843969,157.48,7.877e-05,2]
[420166857,1775745844177,157.48,8.861e-05,2]
[420166859,1775745951142,-157.48,9.846e-05,2]
[420166860,1775745951164,-2173.42182433,0.000105,3]
[420166861,1775746031801,164.0,8.861e-05,3]
[420166862,1775746039087,-1035.0,0.000105,3]
[420166863,1775746039109,-144.90898801,0.00010547,2]
[420166864,1775746086993,164.0,8.861e-05,3]
[420166865,1775746147305,164.0,8.861e-05,3]
[420166866,1775746164143,-5533.0,0.000105,5]
[420166867,1775746164165,-500.27226999,0.00010547,2]
[420166868,1775746164186,-1092.0014765,0.00010799,2]
[420166869,1775746207688,164.0,8.861e-05,3]
[420166897,1775746233740,-157.48,0.0001083,2]
[420166898,1775746233750,-600.0,0.00010969,2]
[420166899,1775746233760,-1200.0,0.00011107,2]
[420166900,1775746233769,-195.0,0.00011122,2]
[420166901,1775746233779,-195.0,0.00011122,2]
[420166902,1775746233788,-195.0,0.00011122,2]
[420166903,1775746233797,-123.85773602,0.00011268,2]
[420166904,1775746233817,-476.14226398,0.00011268,2]
[420166905,1775746233826,-600.0,0.00011268,2]
[420166906,1775746233835,-600.0,0.00011268,2]
[420166907,1775746233845,-150.0,0.00011436,2]
[420166908,1775746233854,-1200.0,0.00011436,2]
[420166909,1775746233864,-52482.6329,0.00011437,2]
[420166910,1775746233873,-250.0,0.0001153,2]
[420166911,1775746233883,-19201.67521676,0.00011537,2]
[420166912,1775746233892,-218.0,0.00011546,2]
[420166913,1775746233902,-1678.99,0.0001169,2]
[420166914,1775746233911,-150.0,0.000118,2]
[420166915,1775746233920,-157.48,0.00011815,2]
[420166916,1775746233930,-168.731,0.00011847,2]
[420166917,1775746233939,-600.0,0.00011913,2]
[420166918,1775746233949,-195.0,0.00011913,2]
[420166919,1775746233959,-250.0,0.00011913,2]
[420166920,1775746233968,-4842.65,0.00011991,2]
[420166921,1775746233978,-1116.0,0.00012471,2]
[420166922,1775746233987,-255.0,0.000125,2]
[420166923,1775746233998,-940.0,0.0001258,2]
[420166924,1775746234007,-5055.3463,0.00012586,2]
[420166925,1775746234016,-33044.9118,0.00012586,2]
[420166926,1775746234025,-5278.463,0.00012586,2]
[420166927,1775746234035,-500.0,0.00012679,2]
[420166928,1775746234045,-1156.41848616,0.00012679,2]
[420166929,1775746234054,-118530.6125,0.00012686,2]
[420166930,1775746234064,-2295.55727758,0.00012967,2]
[420166931,1775746234073,-2500.0,0.00013,2]
[420166932,1775746234083,-1116.0,0.00013095,2]
[420166933,1775746234093,-172.8514,0.000131,2]
[420166934,1775746234103,-506.0,0.000131,2]
[420166935,1775746234112,-2295.55727758,0.00013293,2]
[420166936,1775746234122,-3000.0,0.00013518,2]
[420166937,1775746234131,-2295.55727758,0.00013619,2]
[420166938,1775746234141,-500.0,0.00013643,2]
[420166939,1775746234150,-222.56525066,0.00013643,2]
[420166940,1775746234159,-200.0,0.00013643,2]
[420166941,1775746234169,-578.20924308,0.00013643,2]
[420166942,1775746234178,-1191.11104075,0.00013643,2]
[420166943,1775746234188,-601.3376128,0.00013643,2]
[420166944,1775746234197,-500.0,0.00013643,2]
[420166945,1775746234206,-1500.0,0.00013643,2]
[420166946,1775746234215,-1500.0,0.00013643,2]
[420166947,1775746234224,-1500.0,0.00013643,2]
[420166948,1775746234234,-1500.0,0.00013643,2]
[420166949,1775746234244,-1500.0,0.00013643,2]
[420166950,1775746234253,-743.50770149,0.00013643,2]
[420166951,1775746234263,-1500.0,0.00013643,2]
[420166952,1775746234272,-1255.90872605,0.00013643,2]
[420166953,1775746234281,-174.61919141,0.00013643,2]
[420166954,1775746234290,-578.20924308,0.00013643,2]
[420166955,1775746234300,-279.9045709,0.00013643,2]
[420166956,1775746234309,-433.0,0.00013666,2]
[420166957,1775746234318,-3240.0,0.00013697,2]
[420166958,1775746234327,-500.0,0.00013698,2]
[420166959,1775746234337,-150.0,0.00013699,2]
[420166960,1775746234347,-199.52,0.00013699,2]
[420166961,1775746234355,-1116.0,0.00013749,2]
[420166962,1775746234364,-500.0,0.00013753,2]
[420166963,1775746234374,-1100.0,0.00013792,2]
[420166964,1775746234383,-500.0,0.00013808,2]
[420166965,1775746234393,-160.0,0.00013843,2]
[420166966,1775746234402,-500.0,0.00013863,2]
[420166967,1775746234412,-500.0,0.00013918,2]
[420166968,1775746234421,-2295.55727758,0.00013945,2]
[420166969,1775746234430,-500.0,0.00013973,2]
[420166970,1775746234439,-500.0,0.00014028,2]
[420166971,1775746234448,-500.0,0.00014083,2]
[420166972,1775746234457,-506.0,0.00014084,2]
[420166973,1775746234467,-500.0,0.00014138,2]
[420166974,1775746234846,-200.0,0.00014191,2]
[420166975,1775746234857,-879.87364515,0.00014191,2]
[420166976,1775746234867,-181.08010149,0.00014191,2]
[420166977,1775746234877,-500.0,0.00014193,2]
[420166978,1775746234886,-500.0,0.00014248,2]
[420166979,1775746234896,-2295.55727758,0.00014271,2]
[420166980,1775746234907,-500.0,0.00014303,2]
[420166981,1775746234916,-500.0,0.00014361,2]
[420166982,1775746234926,-500.0,0.00014361,2]
[420166983,1775746234935,-1365.358,0.00014385,2]
[420166984,1775746234944,-1278.85834067,0.00014385,2]
[420166985,1775746234957,-2245.14165933,0.00014385,2]
[420166986,1775746234968,-1047.0,0.00014385,2]
[420166987,1775746234978,-1264.0,0.00014385,2]
[420166988,1775746234987,-926.0,0.00014385,2]
[420166989,1775746234997,-1218.0,0.00014385,2]
[420166990,1775746235006,-3773.0,0.00014385,2]
[420166991,1775746235016,-415.0,0.00014385,2]
[420166992,1775746235026,-199.1842,0.000144,2]
[420166993,1775746235035,-1000.0,0.00014402,2]
[420166994,1775746235044,-500.0,0.00014452,2]
[420166995,1775746235054,-2201.33,0.00014452,2]
[420166996,1775746235063,-2237.871,0.00014538,2]
[420166997,1775746235073,-167.823,0.00014538,2]
[420166998,1775746235082,-2295.55727758,0.00014596,2]
[420166999,1775746235092,-306.0,0.000147,2]
[420167000,1775746235102,-1000.0,0.000147,2]
[420167001,1775746235111,-313.0,0.000147,2]
[420167002,1775746235121,-500.0,0.00014726,2]
[420167003,1775746235131,-500.0,0.00014726,2]
[420167004,1775746235140,-200.0,0.00014739,2]
[420167005,1775746235149,-187.78006525,0.00014739,2]
[420167006,1775746235159,-500.0,0.00014859,2]
[420167007,1775746235169,-200.0,0.00014859,2]
[420167008,1775746235179,-3000.0,0.00014888,2]
[420167009,1775746235189,-157.0,0.000149,2]
[420167010,1775746235198,-2295.55727758,0.00014922,2]
[420167011,1775746235208,-736.0,0.00014935,2]
[420167012,1775746235217,-2235.0,0.00015,2]
[420167013,1775746235227,-1100.0,0.00015,5]
[420167014,1775746235236,-506.0,0.00015068,3]
[420167015,1775746235245,-800.0,0.00015068,2]
[420167016,1775746235255,-2200.0,0.000151,5]
[420167017,1775746235264,-3085.60343252,0.00015133,2]
[420167018,1775746235273,-1100.0,0.00015162,2]
[420167019,1775746235282,-3400.0,0.000152,5]
[420167020,1775746235292,-3085.60343252,0.00015218,2]
[420167021,1775746235302,-151.0,0.00015233,2]
[420167022,1775746235312,-151.0,0.00015233,2]
[420167023,1775746235321,-151.0,0.00015233,2]
[420167024,1775746235331,-192.040882,0.00015233,2]
[420167025,1775746235340,-151.0,0.00015233,2]
[420167026,1775746235350,-192.040882,0.00015233,2]
[420167027,1775746235360,-151.0,0.00015233,2]
[420167028,1775746235369,-2297.550486,0.00015233,2]
[420167029,1775746235379,-192.040882,0.00015233,2]
[420167030,1775746235388,-1047.260993,0.00015233,2]
[420167031,1775746235398,-151.0,0.00015233,2]
[420167032,1775746235408,-192.040882,0.00015233,2]
[420167033,1775746235417,-1047.260993,0.00015233,2]
[420167034,1775746235427,-1047.260993,0.00015233,2]
[420167035,1775746235436,-1047.260993,0.00015233,2]
[420167036,1775746235446,-914.019247,0.00015233,2]
[420167037,1775746235455,-914.019247,0.00015233,2]
[420167038,1775746235465,-2297.550486,0.00015233,2]
[420167039,1775746235474,-914.019247,0.00015233,2]
[420167040,1775746235484,-914.019247,0.00015233,2]
[420167041,1775746235494,-2297.550486,0.00015233,2]
[420167042,1775746235503,-151.0,0.00015233,2]
[420167043,1775746235512,-2297.550486,0.00015233,2]
[420167044,1775746235523,-151.0,0.00015233,2]
[420167045,1775746235533,-231.935041,0.00015233,2]
[420167046,1775746235542,-151.0,0.00015233,2]
[420167047,1775746235552,-151.0,0.00015233,2]
[420167048,1775746235562,-151.0,0.00015233,2]
[420167049,1775746235571,-151.0,0.00015233,2]
[420167050,1775746235581,-151.0,0.00015233,2]
[420167051,1775746235590,-151.0,0.00015233,2]
[420167052,1775746235599,-336.125172,0.00015233,2]